bitfinex/quotes_BTCUSD_20220304
["timestamp","ask_amount","ask_price","bid_price","bid_amount"]
[1646434924969,0.38816218,39086.0,39085.0,0.62456769]
[1646434925376,0.38816218,39086.0,39085.0,0.62489894]
[1646434925773,0.38816218,39086.0,39085.0,0.4534695]
[1646434925972,0.38816218,39086.0,39085.0,0.7278295]
[1646434926172,0.30812215,39086.0,39085.0,0.0519625]
[1646434926374,0.30812215,39086.0,39085.0,0.00099375]
[1646434926574,1.46768915,39086.0,39085.0,0.00099375]
[1646434926775,1.47186832,39086.0,39085.0,0.00099375]
[1646434927173,0.7837,39084.0,39077.0,0.11149463]
[1646434927373,0.375867,39083.0,39077.0,0.11149463]
[1646434927572,0.375867,39083.0,39077.0,0.11949839]
[1646434928242,0.7837,39082.0,39077.0,0.12728047]
[1646434928442,0.52548573,39086.0,39077.0,0.12728047]
[1646434928443,0.7837,39080.0,39077.0,0.12728047]
[1646434928639,0.375867,39079.0,39077.0,0.12728047]
[1646434929540,0.439916,39079.0,39077.0,0.12728047]
[1646434929946,0.439916,39079.0,39077.0,0.13528423]
[1646434930143,0.439916,39079.0,39077.0,0.12728047]
[1646434930350,0.38153427,39079.0,39077.0,0.12728047]
[1646434930544,0.31748527,39079.0,39077.0,0.12728047]
[1646434930944,0.31748527,39079.0,39077.0,0.13528423]
[1646434931144,0.31748527,39079.0,39077.0,0.12728047]
[1646434931543,0.31748527,39079.0,39077.0,0.02728047]
[1646434932071,0.31748527,39079.0,39077.0,0.03528423]
[1646434932671,0.31748527,39079.0,39077.0,0.03561548]
[1646434933072,0.31748527,39079.0,39077.0,0.03361924]
[1646434933271,0.7837,39078.0,39077.0,0.03361924]
[1646434933471,1.159567,39078.0,39077.0,0.03361924]
[1646434933672,1.159567,39078.0,39077.0,0.03395049]
[1646434934272,1.159567,39078.0,39077.0,0.04195425]
[1646434934672,1.159567,39078.0,39077.0,0.0422855]
[1646434935079,1.60909207,39078.0,39077.0,0.0422855]
[1646434935275,1.459567,39078.0,39077.0,0.05028926]
[1646434935477,1.8337,39077.0,39076.0,8.91e-05]
[1646434935720,2.410779,39077.0,39076.0,8.91e-05]
[1646434935925,2.410779,39077.0,39071.0,0.00033125]
[1646434936121,0.7837,39073.0,39071.0,0.00033125]
[1646434936321,1.310779,39072.0,39071.0,0.00033125]
[1646434936521,1.510779,39072.0,39071.0,0.00033125]
[1646434937123,1.510779,39072.0,39069.0,0.03818508]
[1646434937325,0.7837,39070.0,39069.0,0.03818508]
[1646434937530,0.7837,39070.0,39056.0,0.4479]
[1646434937531,0.7837,39068.0,39056.0,0.4479]
[1646434937731,0.7837,39068.0,39053.0,0.4479]
[1646434937732,0.7837,39064.0,39053.0,0.4479]
[1646434937924,0.7837,39060.0,39053.0,0.4479]
[1646434938126,0.0513,39063.0,39053.0,0.4479]
[1646434938127,0.7837,39056.0,39053.0,0.4479]
[1646434938327,1.20965,39054.0,39053.0,0.4479]
[1646434939988,0.375779,39054.0,39053.0,0.63316625]
[1646434940186,0.0513,39059.0,39053.0,0.63316625]
[1646434940387,0.375779,39058.0,39053.0,0.63316625]
[1646434940589,0.427079,39058.0,39053.0,0.63316625]
[1646434940785,0.427079,39058.0,39053.0,0.4479]
[1646434941187,0.427079,39058.0,39054.0,8.893e-05]
[1646434941586,0.491161,39058.0,39054.0,8.893e-05]
[1646434941790,0.427079,39058.0,39055.0,0.18376505]
[1646434942086,0.36865565,39058.0,39049.0,0.9284]
[1646434942287,0.0513,39058.0,39049.0,0.9284]
[1646434942487,0.375899,39057.0,39054.0,8.893e-05]
[1646434943128,1.159599,39057.0,39049.0,0.9284]
[1646434943331,0.375899,39056.0,39054.0,6.892e-05]
[1646434944331,0.375899,39056.0,39049.0,0.4479]
[1646434944537,1.159599,39056.0,39053.0,6.892e-05]
[1646434945132,0.7837,39054.0,39053.0,6.892e-05]
[1646434945333,1.159599,39054.0,39053.0,6.892e-05]
[1646434945531,1.159599,39054.0,39049.0,0.4479]
[1646434945732,0.7837,39052.0,39049.0,0.4479]
[1646434945930,0.77809328,39050.0,39049.0,0.4479]
[1646434946131,1.15399228,39050.0,39049.0,0.4479]
[1646434946871,1.14899228,39050.0,39049.0,0.4479]
[1646434947267,0.77309328,39050.0,39045.0,0.14729686]
[1646434947970,0.006,39052.0,39050.0,0.56038977]
[1646434948568,0.006,39052.0,39045.0,0.6852412]
[1646434948767,0.006,39052.0,39049.0,0.2053249]
[1646434948966,0.006,39052.0,39049.0,0.1553249]
[1646434949168,0.7837,39057.0,39049.0,0.1553249]
[1646434949367,0.3,39064.0,39049.0,0.1553249]
[1646434949568,0.0513,39065.0,39050.0,0.4479]
[1646434949569,0.7837,39062.0,39050.0,0.4479]
[1646434949767,0.7837,39060.0,39050.0,0.4479]
[1646434949967,0.7837,39058.0,39050.0,0.4479]
[1646434950370,0.002,39063.0,39050.0,0.4479]
[1646434950626,0.064077,39062.0,39050.0,0.4479]
[1646434951230,0.002,39063.0,39051.0,0.375899]
[1646434951431,0.002,39063.0,39053.0,0.375899]
[1646434951627,0.002,39063.0,39055.0,0.375899]
[1646434951930,0.002,39063.0,39057.0,0.02564]
[1646434952128,0.002,39063.0,39058.0,0.401539]
[1646434952330,0.002,39063.0,39060.0,0.02564]
[1646434952530,0.03832948,39075.0,39061.0,0.375899]
[1646434952729,0.03832948,39075.0,39062.0,0.3]
[1646434952929,0.03832948,39075.0,39063.0,0.375899]
[1646434953133,0.03832948,39075.0,39064.0,0.3]
[1646434953334,0.03832948,39075.0,39065.0,0.401539]
[1646434953531,0.03832948,39075.0,39069.0,0.05229]
[1646434953731,0.03332948,39075.0,39070.0,0.375899]
[1646434953932,0.03332948,39075.0,39069.0,0.12029]
[1646434954571,0.81702948,39075.0,39069.0,0.068]
[1646434955169,0.81702948,39075.0,39063.0,0.3]
[1646434955371,0.81702948,39075.0,39062.0,0.01278]
[1646434955770,0.064058,39072.0,39062.0,0.01278]
[1646434955973,0.064058,39072.0,39061.0,0.4479]
[1646434956169,0.847758,39072.0,39061.0,0.4479]
[1646434956571,0.847758,39072.0,39063.0,0.18757725]
[1646434957172,0.375899,39071.0,39063.0,0.18757725]
[1646434957372,0.847758,39072.0,39063.0,0.18757725]
[1646434957777,0.7837,39070.0,39061.0,0.4479]
[1646434957977,0.064069,39066.0,39061.0,0.4479]
[1646434958226,0.375899,39065.0,39061.0,0.4479]
[1646434959026,0.375899,39065.0,39061.0,0.44798286]
[1646434959228,1.159599,39063.0,39061.0,0.44798286]
[1646434959431,0.128154,39064.0,39061.0,0.44798286]
[1646434959432,1.210899,39062.0,39061.0,0.44798286]
[1646434959629,1.310899,39062.0,39061.0,0.44798286]
[1646434959827,1.36507817,39062.0,39061.0,8.286e-05]
[1646434960026,1.36507817,39062.0,39051.0,0.4479]
[1646434960227,0.7837,39058.0,39051.0,0.4479]
[1646434960426,0.7837,39056.0,39051.0,0.4479]
[1646434960627,0.7837,39054.0,39051.0,0.4479]
[1646434960828,0.375899,39053.0,39051.0,0.4479]
[1646434961428,0.375899,39054.0,39051.0,0.4479]
[1646434961627,0.064088,39055.0,39051.0,0.4479]
[1646434961872,0.375899,39054.0,39051.0,0.4479]
[1646434962075,0.37547851,39054.0,39051.0,0.4479]
[1646434962279,1.15917851,39054.0,39051.0,0.4479]
[1646434962675,1.14936725,39054.0,39051.0,0.4479]
[1646434963173,1.15354642,39054.0,39051.0,0.4479]
[1646434963576,1.159599,39052.0,39051.0,0.4479]
[1646434963778,0.7837,39049.0,39042.0,0.4479]
[1646434963975,0.7837,39045.0,39042.0,0.4479]
[1646434964176,0.228204,39051.0,39042.0,0.4479]
[1646434964177,0.375907,39044.0,39042.0,0.4479]
[1646434965628,0.175404,39051.0,39042.0,0.4479]
[1646434965830,0.375907,39050.0,39042.0,0.4479]
[1646434966031,0.004,39048.0,39043.0,0.3]
[1646434966232,0.004,39048.0,39044.0,0.375907]
[1646434966438,0.004,39048.0,39045.0,0.32564]
[1646434966633,0.004,39048.0,39046.0,0.16505558]
[1646434967232,0.00563495,39059.0,39047.0,1.05]
[1646434967432,0.00563495,39059.0,39048.0,0.3]
[1646434967633,0.00563495,39059.0,39054.0,0.19316599]
[1646434967832,0.375907,39058.0,39054.0,0.19316599]
[1646434968231,0.375907,39058.0,39050.0,0.4479]
[1646434968433,0.00563495,39059.0,39047.0,1.4979]
[1646434968732,0.00563495,39059.0,39054.0,8.855e-05]
[1646434968937,0.375907,39058.0,39054.0,8.855e-05]
[1646434969773,0.375907,39058.0,39052.0,0.1692484]
[1646434969972,0.00963495,39059.0,39054.0,8.855e-05]
[1646434970473,0.375907,39058.0,39054.0,8.855e-05]
[1646434970876,0.375907,39058.0,39052.0,0.1692484]
[1646434971074,0.375907,39057.0,39054.0,8.855e-05]
[1646434972073,0.375907,39057.0,39052.0,0.1692484]
[1646434972372,0.375907,39057.0,39054.0,7.859e-05]
[1646434973435,0.375907,39057.0,39052.0,0.1692484]
[1646434973621,0.375907,39057.0,39054.0,7.859e-05]
[1646434974522,0.375907,39057.0,39052.0,0.1692484]
[1646434974720,0.375907,39057.0,39054.0,7.859e-05]
[1646434975323,1.159607,39057.0,39054.0,7.859e-05]
[1646434975523,1.15681525,39057.0,39054.0,7.859e-05]
[1646434975723,1.15681525,39057.0,39047.0,0.4479]
[1646434975921,0.064089,39054.0,39047.0,0.4479]
[1646434976522,0.7837,39057.0,39047.0,0.4479]
[1646434977180,0.375915,39056.0,39050.0,7.972e-05]
[1646434977381,0.37564442,39056.0,39050.0,0.19210494]
[1646434977581,1.15934442,39056.0,39050.0,7.972e-05]
[1646434978082,1.15934442,39056.0,39047.0,0.4479]
[1646434978282,0.128174,39058.0,39051.0,7.972e-05]
[1646434978283,1.159609,39055.0,39051.0,7.972e-05]
[1646434979284,1.02110141,39055.0,39047.0,0.4479]
[1646434979485,1.02110141,39055.0,39051.0,7.959e-05]
[1646434979486,0.064088,39054.0,39051.0,7.959e-05]
[1646434979685,0.504101,39053.0,39051.0,7.959e-05]
[1646434980284,0.7837,39052.0,39051.0,7.959e-05]
[1646434980483,1.070818,39052.0,39047.0,0.4479]
[1646434980727,1.159606,39051.0,39050.0,7.959e-05]
[1646434981127,1.023701,39051.0,39050.0,7.959e-05]
[1646434981729,1.023701,39051.0,39037.0,0.4479]
[1646434981932,0.847795,39051.0,39049.0,7.959e-05]
[1646434982133,1.159664,39050.0,39049.0,7.959e-05]
[1646434982333,1.209664,39050.0,39049.0,7.959e-05]
[1646434982532,1.356864,39050.0,39049.0,7.959e-05]
[1646434982835,1.36104317,39050.0,39049.0,7.959e-05]
[1646434983032,1.36104317,39050.0,39037.0,0.4479]
[1646434983231,0.7837,39045.0,39037.0,0.4479]
[1646434983433,0.7837,39043.0,39037.0,0.4479]
[1646434983630,1.159664,39042.0,39037.0,0.4479]
[1646434984237,0.7837,39039.0,39037.0,0.4479]
[1646434984493,1.159664,39038.0,39037.0,0.4479]
[1646434984682,0.78550973,39038.0,39037.0,0.4479]
[1646434984883,0.236379,39038.0,39037.0,0.4479]
[1646434985681,1.020079,39038.0,39037.0,0.4479]
[1646434985883,1.157969,39038.0,39037.0,0.4479]
[1646434986387,1.157969,39038.0,39036.0,7.964e-05]
[1646434986388,1.920079,39037.0,39036.0,7.964e-05]
[1646434986586,2.217279,39037.0,39018.0,0.4479]
[1646434986782,0.7837,39031.0,39018.0,0.4479]
[1646434986984,0.133579,39030.0,39018.0,0.4479]
[1646434987181,0.233579,39030.0,39018.0,0.4479]
[1646434987781,1.017279,39030.0,39018.0,0.4479]
[1646434987983,0.233579,39030.0,39018.0,0.4479]
[1646434988229,0.064134,39027.0,39018.0,0.4479]
[1646434988427,0.086379,39026.0,39018.0,0.4479]
[1646434989533,0.03598091,39026.0,39018.0,0.4479]
[1646434989928,0.03598091,39026.0,39021.0,0.16443467]
[1646434990127,0.03598091,39026.0,39018.0,0.4479]
[1646434990326,0.03598091,39026.0,39020.0,8.844e-05]
[1646434991032,0.03317568,39026.0,39020.0,0.16685405]
[1646434991431,0.03317568,39026.0,39020.0,0.16676561]
[1646434991630,0.03317568,39026.0,39021.0,8.844e-05]
[1646434992683,0.03317568,39026.0,39018.0,0.4479]
[1646434992882,0.03317568,39026.0,39022.0,8.844e-05]
[1646434993382,0.13317568,39026.0,39022.0,8.844e-05]
[1646434993783,0.13317568,39026.0,39018.0,0.4479]
[1646434993982,0.13317568,39026.0,39022.0,8.844e-05]
[1646434994183,0.911989,39025.0,39022.0,8.844e-05]
[1646434994383,0.816856,39024.0,39022.0,8.844e-05]
[1646434994686,0.064141,39023.0,39022.0,8.844e-05]
[1646434994983,0.097297,39023.0,39018.0,0.4479]
[1646434995282,0.097297,39023.0,39021.0,7.871e-05]
[1646434996130,0.097297,39023.0,39018.0,0.4479]
[1646434996730,0.147297,39023.0,39018.0,0.4479]
[1646434997128,0.930997,39023.0,39018.0,0.4479]
[1646434997331,0.1,39022.0,39018.0,0.4479]
[1646434997528,0.033156,39021.0,39019.0,7.872e-05]
[1646434998331,0.033156,39021.0,39018.0,0.24797872]
[1646434998531,0.033156,39021.0,39015.0,0.4851]
[1646434999031,0.064146,39020.0,39015.0,0.65430186]
[1646434999233,0.033156,39019.0,39015.0,0.4851]
[1646434999478,0.03145946,39019.0,39015.0,0.4851]
[1646434999883,0.03145946,39019.0,39014.0,0.3]
[1646435000078,0.03145946,39019.0,39013.0,9.4479]
[1646435000879,0.03145946,39019.0,39013.0,9.0]
[1646435001078,0.03145946,39019.0,39013.0,8.995]
[1646435002382,0.03145946,39019.0,39014.0,8.826e-05]
[1646435002781,0.03145946,39019.0,39014.0,0.15075561]
[1646435002979,0.03145946,39019.0,39014.0,8.826e-05]
[1646435003425,0.03145946,39019.0,39013.0,8.995]
[1646435003626,0.03145946,39019.0,39015.0,6.84e-05]
[1646435004526,0.03145946,39019.0,39013.0,8.995]
[1646435004727,0.03145946,39019.0,39015.0,6.84e-05]
[1646435005131,1.049146,39020.0,39015.0,6.84e-05]
[1646435005132,0.81515,39017.0,39015.0,6.84e-05]
[1646435005332,0.930614,39016.0,39015.0,6.84e-05]
[1646435005529,1.23479215,39016.0,39015.0,6.84e-05]
[1646435005731,1.23479215,39016.0,39013.0,8.85533671]
[1646435005732,0.7837,39014.0,39013.0,8.85533671]
[1646435005931,0.86645,39014.0,39013.0,8.85533671]
[1646435006130,1.01645,39014.0,39013.0,8.85533671]
[1646435006329,1.02062815,39014.0,39013.0,8.85533671]
[1646435006981,1.01645,39014.0,39013.0,8.85533671]
[1646435008584,1.01578,39014.0,39013.0,8.85466871]
[1646435009686,1.013907,39014.0,39013.0,8.85279771]
[1646435009887,1.013907,39014.0,39013.0,8.81479771]
[1646435010929,1.17728206,39014.0,39013.0,8.81479771]
[1646435011129,1.013907,39014.0,39013.0,8.81229771]
[1646435011329,1.17728206,39014.0,39013.0,8.81229771]
[1646435011533,1.17728206,39014.0,39000.0,0.4691]
[1646435011731,0.8337,39010.0,39001.0,0.20196441]
[1646435011930,0.86645,39009.0,39000.0,0.4691]
[1646435012130,1.01645,39009.0,38999.0,0.4773]
[1646435012330,1.04145,39009.0,38999.0,0.4773]
[1646435012732,0.064169,39007.0,38999.0,0.4773]
[1646435012934,0.19251776,39013.0,38999.0,0.4773]
[1646435012935,0.0513,39013.0,38999.0,0.4773]
[1646435013136,0.003,39018.0,39002.0,0.15]
[1646435013333,0.08983418,39021.0,39005.0,7.153e-05]
[1646435013334,0.03853418,39021.0,39005.0,7.153e-05]
[1646435013535,0.03853418,39021.0,39007.0,0.02564]
[1646435013736,0.16320376,39027.0,39011.0,0.02564]
[1646435013933,0.12826,39033.0,39016.0,0.02564]
[1646435014133,0.0513,39041.0,39018.0,0.02564]
[1646435014134,0.22732775,39039.0,39018.0,0.02564]
[1646435014389,0.29933232,39038.0,39020.0,0.064121]
[1646435014588,0.29933232,39038.0,39017.0,0.5979]
[1646435014589,0.06412399,39039.0,39021.0,0.676199]
[1646435014790,0.03145,39038.0,39021.0,0.3]
[1646435014989,0.128244,39037.0,39019.0,0.3]
[1646435015189,0.064121,39037.0,39019.0,0.3]
[1646435015493,0.064121,39037.0,39020.0,0.08976]
[1646435015688,0.03145,39036.0,39021.0,0.3]
[1646435016094,0.10244835,39039.0,39021.0,0.3]
[1646435016095,0.03145,39035.0,39026.0,0.1858566]
[1646435016290,0.0159814,39035.0,39026.0,0.1858566]
[1646435016490,0.016,39032.0,39026.0,0.1858566]
[1646435016689,0.00416467,39032.0,39027.0,0.45]
[1646435017692,0.05,39038.0,39027.0,0.75]
[1646435018164,0.004,39038.0,39029.0,0.02564]
[1646435018354,0.004,39038.0,39029.0,0.32564]
[1646435018553,0.004,39038.0,39030.0,0.02564]
[1646435019251,0.03837038,39040.0,39030.0,0.02564]
[1646435019653,0.03837038,39040.0,39032.0,0.02564]
[1646435019853,0.03837038,39040.0,39037.0,0.02564]
[1646435020052,0.03637038,39040.0,39038.0,0.376081]
[1646435020255,0.03950331,39049.0,39039.0,0.3]
[1646435020455,0.03950331,39049.0,39040.0,0.10911113]
[1646435020658,0.10360031,39049.0,39040.0,0.10911113]
[1646435021253,0.03950331,39049.0,39040.0,0.10911113]
[1646435022085,0.064103,39048.0,39040.0,0.10911113]
[1646435023191,0.7837,39047.0,39040.0,0.10911113]
[1646435023390,0.7837,39046.0,39040.0,0.10911113]
[1646435023588,0.06411,39045.0,39040.0,0.10911113]
[1646435024191,0.12822359,39045.0,39040.0,0.10911113]
[1646435024591,0.91192359,39045.0,39040.0,0.10911113]
[1646435024989,1.07512735,39045.0,39040.0,0.10911113]
[1646435025189,0.91192359,39045.0,39040.0,0.10911113]
[1646435025394,0.7837,39043.0,39040.0,0.10911113]
[1646435025632,0.39562668,39044.0,39040.0,0.10911113]
[1646435025633,0.7837,39041.0,39040.0,0.10911113]
[1646435025841,0.7837,39039.0,39028.0,0.4677]
[1646435026032,0.7837,39039.0,39024.0,0.4977]
[1646435026033,0.7837,39036.0,39024.0,0.4977]
[1646435026233,0.7837,39034.0,39024.0,0.4977]
[1646435026431,0.7837,39032.0,39024.0,0.4977]
[1646435026630,0.835,39031.0,39023.0,0.4676]
[1646435026834,0.899137,39031.0,39023.0,0.4676]
[1646435027031,0.7837,39029.0,39023.0,0.4676]
[1646435027234,0.79935828,39027.0,39023.0,0.4676]
[1646435027434,0.79935828,39027.0,39016.0,0.4977]
[1646435027435,1.135,39026.0,39016.0,0.4977]
[1646435027636,0.7837,39025.0,39010.0,0.4737]
[1646435027836,0.7837,39018.0,39009.0,0.4676]
[1646435028033,1.135,39017.0,39009.0,0.4676]
[1646435028232,1.038321,39017.0,39009.0,0.4676]
[1646435028438,0.1,39016.0,39009.0,0.4676]
[1646435028634,0.15,39016.0,39009.0,0.4676]
[1646435029487,0.214161,39016.0,39009.0,0.4676]
[1646435029881,0.214161,39016.0,39009.0,0.63685725]
[1646435030081,0.214161,39016.0,39009.0,0.4676]
[1646435031190,0.064161,39016.0,39009.0,0.4676]
[1646435031384,0.164161,39016.0,39009.0,0.4676]
[1646435032384,0.064161,39016.0,39009.0,0.4676]
[1646435032984,0.07174352,39017.0,39010.0,0.18430339]
[1646435033823,0.1,39018.0,39010.0,0.18430339]
[1646435034022,0.064161,39016.0,39009.0,0.4676]
[1646435034423,0.064161,39016.0,39012.0,8.791e-05]
[1646435035526,0.064161,39016.0,39012.0,0.00017582]
[1646435035725,0.164161,39016.0,39012.0,0.00017582]
[1646435035925,0.164161,39016.0,39012.0,8.791e-05]
[1646435036526,0.164161,39016.0,39010.0,0.1805585]
[1646435036727,0.164161,39016.0,39012.0,8.791e-05]
[1646435036979,0.064161,39016.0,39010.0,0.17564641]
[1646435038180,0.05,39017.0,39010.0,0.17564641]
[1646435038380,0.07765891,39019.0,39010.0,0.17564641]
[1646435038584,0.01351091,39019.0,39009.0,0.4676]
[1646435039181,0.01351091,39019.0,39011.0,8.769e-05]
[1646435039781,0.01351091,39019.0,39016.0,0.17011637]
[1646435039984,0.13244926,39030.0,39016.0,0.17011637]
[1646435040184,0.001,39025.0,39016.0,0.17011637]
[1646435041347,0.10299377,39027.0,39016.0,0.17011637]
[1646435041847,0.10299377,39027.0,39023.0,0.19172911]
[1646435042044,0.10299377,39027.0,39014.0,0.4479]
[1646435043848,0.20299377,39027.0,39014.0,0.4479]
[1646435044247,0.50299377,39027.0,39014.0,0.4479]
[1646435044677,0.55299377,39027.0,39014.0,0.4479]
[1646435044882,0.064147,39023.0,39014.0,0.4479]
[1646435045877,1.147847,39023.0,39014.0,0.4479]
[1646435047684,0.1,39022.0,39014.0,0.4479]
[1646435047883,0.06415,39019.0,39014.0,0.4479]
[1646435048541,0.06415,39019.0,39014.0,0.4329]
[1646435051247,0.06415,39019.0,39011.0,7.191e-05]
[1646435051547,0.11545,39019.0,39011.0,7.191e-05]
[1646435051746,0.7837,39018.0,39011.0,7.191e-05]
[1646435052191,0.7837,39018.0,39010.0,0.20829733]
[1646435052192,0.1,39017.0,39010.0,0.20829733]
[1646435052393,0.1,39017.0,39011.0,7.191e-05]
[1646435052596,0.064153,39016.0,39011.0,7.191e-05]
[1646435053191,0.064153,39016.0,39009.0,0.46267191]
[1646435053492,0.064153,39016.0,39011.0,7.191e-05]
[1646435053891,0.00811956,39016.0,39011.0,7.191e-05]
[1646435054490,0.00811956,39016.0,39009.0,0.46267191]
[1646435054692,0.00811956,39016.0,39010.0,7.152e-05]
[1646435054892,0.00811956,39016.0,39011.0,0.15606827]
[1646435055094,0.03794937,39017.0,39011.0,0.15606827]
[1646435055296,0.03794937,39017.0,39010.0,7.152e-05]
[1646435055726,0.03794937,39017.0,39009.0,0.46267191]
[1646435056031,0.03794937,39017.0,39010.0,7.152e-05]
[1646435056427,0.03794937,39017.0,39011.0,0.1593796]
[1646435056726,0.03794937,39017.0,39011.0,0.1543796]
[1646435057529,0.03794937,39017.0,39010.0,7.152e-05]
[1646435058228,0.064152,39016.0,39009.0,0.46267191]
[1646435058426,0.064152,39016.0,39010.0,7.143e-05]
[1646435059483,0.064152,39016.0,39009.0,0.6434793]
[1646435059681,0.064152,39016.0,39010.0,7.143e-05]
[1646435060679,0.064152,39016.0,39009.0,0.6434793]
[1646435060883,0.064152,39016.0,39010.0,7.143e-05]
[1646435061680,0.07206134,39017.0,39010.0,7.143e-05]
[1646435061883,0.07206134,39017.0,39009.0,0.46267191]
[1646435062086,0.0762396,39017.0,39010.0,7.145e-05]
[1646435062282,0.064152,39016.0,39010.0,7.145e-05]
[1646435062482,0.064152,39016.0,39010.0,0.18702955]
[1646435062686,0.064152,39016.0,39010.0,7.145e-05]
[1646435063162,0.064152,39016.0,39009.0,0.46267191]
[1646435063362,0.064152,39016.0,39010.0,7.145e-05]
[1646435063964,0.03794937,39017.0,39010.0,7.145e-05]
[1646435064363,0.03794937,39017.0,39009.0,0.65437024]
[1646435064562,0.03794937,39017.0,39010.0,7.144e-05]
[1646435065463,0.03794937,39017.0,39009.0,0.64944168]
[1646435065663,0.03794937,39017.0,39010.0,7.144e-05]
[1646435065863,0.10209837,39017.0,39010.0,7.144e-05]
[1646435066665,0.10182779,39017.0,39009.0,0.64944168]
[1646435067483,0.04489549,39017.0,39009.0,0.45774335]
[1646435067685,0.08370178,39017.0,39009.0,0.45774335]
[1646435068486,0.08370178,39017.0,39012.0,0.21442439]
[1646435070289,0.08370178,39017.0,39009.0,0.45774335]
[1646435070488,0.08370178,39017.0,39009.0,0.45783069]
[1646435070751,0.08370178,39017.0,39009.0,0.44783069]
[1646435071551,0.08370178,39017.0,39009.0,0.44774335]
[1646435071855,0.08370178,39017.0,39009.0,0.44783069]
[1646435072655,0.08370178,39017.0,39009.0,0.44774335]
[1646435072854,0.08788004,39017.0,39009.0,0.44783069]
[1646435073452,0.18788004,39017.0,39009.0,0.44783069]
[1646435073653,0.18788004,39017.0,39010.0,0.15637611]
[1646435073654,0.08788004,39017.0,39010.0,0.15637611]
[1646435073852,0.18788004,39017.0,39009.0,0.44774335]
[1646435074055,0.18788004,39017.0,39009.0,0.44782523]
[1646435074483,0.53788004,39017.0,39009.0,0.44782523]
[1646435074690,0.23788004,39017.0,39009.0,0.44782523]
[1646435075088,0.53788004,39017.0,39009.0,0.44774335]
[1646435075286,0.23788004,39017.0,39009.0,0.44782523]
[1646435075884,0.40435535,39017.0,39009.0,0.44782523]
[1646435076084,0.23788004,39017.0,39009.0,0.44782523]
[1646435076284,0.23788004,39017.0,39009.0,0.44774335]
[1646435076486,0.23788004,39017.0,39009.0,0.44782523]
[1646435076684,0.4043838,39017.0,39009.0,0.44782523]
[1646435077285,0.4043838,39017.0,39010.0,0.17639432]
[1646435077487,0.23788004,39017.0,39009.0,0.44774335]
[1646435077689,0.07927476,39017.0,39009.0,0.44781247]
[1646435077887,0.17927476,39017.0,39009.0,0.44781247]
[1646435078434,0.34577852,39017.0,39009.0,0.44781247]
[1646435078832,0.34577852,39017.0,39009.0,0.44774335]
[1646435079033,0.20697223,39017.0,39009.0,0.44781247]
[1646435079237,0.138445,39017.0,39010.0,0.02564]
[1646435079434,0.01059087,39019.0,39009.0,0.44781247]
[1646435079833,0.01059087,39019.0,39009.0,0.44774335]
[1646435080035,0.01059087,39019.0,39015.0,0.19697162]
[1646435080244,0.01059087,39019.0,39009.0,0.44781247]
[1646435080435,0.06415,39017.0,39009.0,0.44781247]
[1646435080634,0.0117687,39022.0,39009.0,0.44781247]
[1646435081034,0.0117687,39022.0,39009.0,0.44774335]
[1646435081434,0.064143,39021.0,39009.0,0.44781514]
[1646435082284,0.064143,39021.0,39009.0,0.44774335]
[1646435082486,0.064143,39021.0,39015.0,0.18845904]
[1646435082685,0.064143,39021.0,39009.0,0.43281514]
[1646435082887,0.064143,39021.0,39010.0,0.95]
[1646435082888,0.02759377,39021.0,39010.0,0.95]
[1646435083686,0.02759377,39021.0,39015.0,0.1916412]
[1646435084286,0.02759377,39021.0,39010.0,0.95]
[1646435084487,0.02759377,39021.0,39011.0,0.02564]
[1646435084687,0.02759377,39021.0,39010.0,0.95]
[1646435084886,0.02759377,39021.0,39009.0,0.43281454]
[1646435085932,0.02759377,39021.0,39009.0,0.45838335]
[1646435086135,0.05225452,39027.0,39011.0,0.02564]
[1646435086136,0.064138,39024.0,39011.0,0.02564]
[1646435086335,0.05583881,39027.0,39011.0,0.02564]
[1646435086535,0.05583881,39027.0,39021.0,0.16450232]
[1646435087537,0.04983881,39027.0,39021.0,0.16450232]
[1646435088338,0.01098204,39027.0,39021.0,0.16450232]
[1646435089038,0.005,39029.0,39021.0,0.16450232]
[1646435089583,0.01056225,39031.0,39027.0,0.20732116]
[1646435089785,0.00556225,39031.0,39027.0,0.20732116]
[1646435090189,0.364122,39034.0,39027.0,0.20732116]
[1646435090190,0.064122,39034.0,39027.0,0.20732116]
[1646435090388,0.01343805,39039.0,39027.0,0.20732116]
[1646435090389,0.069117,39037.0,39027.0,0.20732116]
[1646435090789,0.05683035,39037.0,39027.0,0.20732116]
[1646435091390,0.01343805,39039.0,39027.0,0.23296116]
[1646435091690,0.00087451,39040.0,39028.0,0.02564]
[1646435091887,0.00087451,39040.0,39037.0,0.18883588]
[1646435092091,0.01053275,39046.0,39037.0,0.18883588]
[1646435092294,0.00187448,39041.0,39037.0,0.18883588]
[1646435092688,0.00187448,39041.0,39037.0,0.21447588]
[1646435093134,0.001,39041.0,39037.0,0.21447588]
[1646435093345,0.0011,39049.0,39039.0,0.02564]
[1646435093541,0.00087446,39047.0,39041.0,0.02564]
[1646435093740,0.00087446,39047.0,39039.0,0.08361]
[1646435093741,4.46e-06,39047.0,39043.0,0.02564]
[1646435093938,4.46e-06,39047.0,39043.0,0.3]
[1646435094138,0.00010446,39049.0,39044.0,0.02564]
[1646435094339,0.0011,39053.0,39046.0,0.02564]
[1646435094536,0.0011,39053.0,39047.0,0.064074]
[1646435095135,0.0011,39053.0,39048.0,0.02564]
[1646435095940,0.00021865,39052.0,39045.0,0.02564]
[1646435096337,0.00021865,39052.0,39047.0,0.02564]
[1646435096538,0.00021865,39052.0,39042.0,0.02864]
[1646435096742,0.0011,39053.0,39042.0,0.003]
[1646435096985,0.00021865,39051.0,39042.0,0.003]
[1646435097586,0.00021865,39051.0,39043.0,0.18283354]
[1646435097985,0.0011,39053.0,39040.0,0.4787]
[1646435098185,0.0011,39053.0,39042.0,0.002]
[1646435098186,0.00021865,39049.0,39042.0,0.002]
[1646435098985,0.00021865,39049.0,39043.0,0.19708923]
[1646435099186,0.065188,39053.0,39043.0,0.19708923]
[1646435099386,0.00021849,39049.0,39043.0,0.19708923]
[1646435099787,0.00021849,39049.0,39043.0,0.22272923]
[1646435099985,0.00021849,39049.0,39043.0,0.19708923]
[1646435100390,0.0011,39053.0,39043.0,0.19708923]
[1646435100635,0.0011,39053.0,39044.0,0.02564]
[1646435100636,0.00021849,39049.0,39044.0,0.02564]
[1646435100839,0.00021849,39049.0,39045.0,0.376081]